[Event "34th MPL National U14-ch 2022"]
[Site "Ahmedabad"]
[Date "2022.05.11"]
[Round "6.1"]
[White "Shaik Sumer Arsh"]
[Black "John Veny Akkarakaran"]
[Result "0-1"]
[ECO "E32"]
[WhiteElo "1999"]
[BlackElo "1855"]
[Annotator "TA"]
[PlyCount "140"]
[EventDate "2022.05.09"]
[EventType "swiss"]
[EventCountry "IND"]
[SourceTitle "playchess.com"]
[Source "ChessBase"]
[SourceQuality "1"]
[TimeControl "5400+30"]

{[%evp 9,139,35,30,19,23,10,8,18,24,10,21,0,0,0,24,6,27,23,30,27,52,50,56,52,53,58,69,17,29,16,53,39,32,13,35,10,40,28,84,79,79,35,45,0,0,0,0,8,13,0,6,0,0,0,0,0,0,0,0,0,0,0,0,0,0,-75,-80,-266,-266,-261,-205,-219,-231,-292,-279,-275,-243,-387,-369,-446,-447,-418,-450,-464,-456,-651,-630,-1152,-1116,-893,-770,-919,-882,-775,-689,-597,-560,-660,-628,-1129,-1127,-981,-781,-988,-940,-5405,-5173,-10526,-2828,-9522,-5681,-6008,-5889,-29980,-29981,-29985,-29985,-29989,-29990,-29990,-29991,-29991,-29992,-29992,-29993,-29993,-29994,-29996,-29997,-29997,-29998,-29999]} 1. d4 {[%emt 0:00:03]} e6 {[%emt 0:00:07]} 2. c4 {[%emt 0:00:10]} Nf6 {[%emt 0:00:06]} 3. Nc3 {[%emt 0:00:07]} Bb4 {[%emt 0:00:17]} 4. Qc2 {[%emt 0:00:08]} b6 {[%emt 0:00:05]} 5. e4 {[%emt 0:00:27]} c5 {[%emt 0:00:08]} 6. d5 {[%emt 0:00:15] E32: Nimzo-Indian: Classical (4 Qc2): 4...0-0.} (6. a3 $5 {[%cal Ra3b4]} Bxc3+ 7. bxc3 $11) 6... Qe7 {[%emt 0:00:21]} 7. Nge2 {[%emt 0:00:17]} exd5 {[%emt 0:00:09]} 8. exd5 {[%emt 0:00:10] The position is equal.} d6 {[%emt 0:01:16]} 9. Bd2 {[%emt 0:01:06]} (9. Bg5 $5 {[%cal Re1c1]}) 9... O-O {[%emt 0:00:13]} 10. f3 {[%emt 0:00:43][%cal Bf2f3,Bf3f4][%mdl 32]} Nbd7 {[%emt 0:05:52] Strongly threatening ...Ne5.} 11. O-O-O {[%emt 0:02:52]} Ne5 {[%emt 0:10:35]} 12. Ng3 {[%emt 0:02:09]} Re8 {[%emt 0:07:34]} 13. Re1 {[%emt 0:14:46]} Qd8 {[%emt 0:01:37] [#]} 14. f4 $146 {[%emt 0:09:31]} ({Predecessor:} 14. h3 Bd7 15. f4 Ng6 16. Bd3 Rxe1+ 17. Rxe1 b5 18. Nxb5 Bxb5 19. cxb5 Qa5 20. a3 Bxd2+ 21. Qxd2 Qxd2+ 22. Kxd2 Nxf4 {0-1 (42) Schekachikhin,M (2406)-Baskin,R (2390) Chess.com INT 2020}) 14... Ned7 {[%emt 0:13:52]} 15. Bd3 {[%emt 0:02:27] Rxe8+ is the strong threat.} Nf8 {[%emt 0:05:17]} 16. a3 {[%emt 0:04:07]} Ba5 {[%emt 0:01:00]} 17. Rxe8 {[%emt 0:16:34]} Nxe8 {[%emt 0:01:01]} 18. Nce4 {[%emt 0:03:57]} (18. Nge4 $14) 18... Bxd2+ $11 {[%emt 0:08:05]} 19. Qxd2 {[%emt 0:02:51]} Nd7 {[%emt 0:03:24]} 20. Re1 {[%emt 0:12:52]} Ndf6 {[%emt 0:03:15]} 21. Qe3 {[%emt 0:06:39]} Bd7 {[%emt 0:10:34]} 22. Nc3 {[%emt 0:09:23]} Nc7 {[%emt 0:10:45]} 23. Nge4 {[%emt 0:02:01]} Qe7 {[%emt 0:04:00]} (23... Nxe4 $11 {keeps the balance.} 24. Nxe4 (24. Qxe4 g6 $14) 24... Qf8) 24. Nxf6+ {[%emt 0:08:55]} Qxf6 {[%emt 0:12:57]} 25. Ne4 {[%emt 0:00:00]} (25. Qe7 {with more complications.} Re8 26. Qxf6 Rxe1+ 27. Kd2) 25... Qh6 {[%emt 0:00:00]} 26. Ng5 {[%emt 0:00:00]} (26. g4 $5 {[%cal Rg4g5]}) 26... Re8 {[%emt 0:00:00]} 27. Qg3 {[%emt 0:00:00]} f5 {[%emt 0:00:00]} 28. Rxe8+ {[%emt 0:00:00]} Nxe8 {[%emt 0:00:00]} 29. Qe3 {[%emt 0:00:39] Threatens to win with Qe7.} Qf6 {[%emt 0:00:00] Prevents Qe7.} (29... Qxh2 $2 30. Qe7 Qxf4+ 31. Kb1 Qxg5 32. Qxg5 $18) 30. g4 {[%emt 0:00:32] aiming for Bxf5.} Nc7 {[%emt 0:01:21]} 31. gxf5 {[%emt 0:01:04]} Bxf5 {[%emt 0:00:17]} 32. Bxf5 {[%emt 0:00:01]} Qxf5 {[%emt 0:00:01][%mdl 4096] Endgame KQN-KQN} 33. Ne4 {[%emt 0:00:03]} Qd7 {[%emt 0:00:41]} 34. Qg3 {[%emt 0:01:32]} Qe7 {[%emt 0:00:11] Against Nf6+} 35. Qg2 {[%emt 0:00:38]} h6 {[%emt 0:01:54]} 36. f5 {[%emt 0:00:33]} Ne8 {[%emt 0:00:30] Prevents f6.} 37. Qe2 {[%emt 0:00:32]} (37. Qg4 $11 {remains equal.}) 37... Qe5 $17 {[%emt 0:00:07]} 38. Ng3 $2 {[%emt 0:00:31] This move loses the game for White.} (38. h3 $17) 38... Qxe2 $19 {[%emt 0:00:12]} 39. Nxe2 {[%emt 0:00:01] KN-KN} Kf7 {[%emt 0:00:13]} 40. Ng3 {[%emt 0:00:57] [#]} Kf6 $1 {[%emt 0:00:01]} 41. Kc2 {[%emt 0:00:29]} Ke5 {[%emt 0:00:16]} 42. Kd3 {[%emt 0:00:42]} Kf4 {[%emt 0:00:12]} 43. b4 {[%emt 0:00:24]} (43. Ne4 $142) 43... Nf6 {[%emt 0:00:11]} 44. bxc5 {[%emt 0:00:22]} bxc5 {[%emt 0:00:01]} 45. Ne2+ {[%emt 0:00:28]} Kxf5 {[%emt 0:00:04]} 46. Nc3 {[%emt 0:00:21]} a6 {[%emt 0:00:02] Prevents Nb5.} 47. a4 {[%emt 0:00:22]} (47. Ne2 $142 g5 48. Ng3+ Ke5 49. Ke2) 47... g5 {[%emt 0:00:44][%cal Bg7g5,Bg5g4][%mdl 32]} 48. a5 {[%emt 0:00:44]} g4 {[%emt 0:01:20]} 49. Nb5 {[%emt 0:00:52]} Ne8 {[%emt 0:00:56]} ({Weaker is} 49... axb5 50. cxb5 Nd7 51. b6 c4+ 52. Kc3 $11 (52. Kxc4 h5 $15)) 50. Nc3 {[%emt 0:00:10]} Ke5 {[%emt 0:00:22]} 51. Ke3 {[%emt 0:00:38]} Nf6 {[%emt 0:00:58]} 52. Ne2 {[%emt 0:00:01]} Nh5 {[%emt 0:00:25] Inhibits Nf4. White must now prevent ...Ng7.} 53. Nc3 {[%emt 0:00:12]} Ng7 {[%emt 0:00:13]} 54. Ne4 {[%emt 0:01:22]} Nf5+ {[%emt 0:00:13]} 55. Kd3 {[%emt 0:00:01]} Nd4 {[%emt 0:00:44]} 56. Nf2 {[%emt 0:00:01]} h5 {[%emt 0:00:47]} 57. Ne4 {[%emt 0:00:01]} Nf3 {[%emt 0:00:24]} 58. Ke3 {[%emt 0:01:02]} Nxh2 {[%emt 0:00:15]} 59. Ng5 {[%emt 0:00:02]} Nf1+ {[%emt 0:00:49]} 60. Kf2 {[%emt 0:00:19]} Nd2 {[%emt 0:00:07] ( -> ...Ne4+)} 61. Nf7+ {[%emt 0:00:14]} Kf4 {[%emt 0:03:59] Black mates.} 62. Nxd6 {[%emt 0:00:10]} h4 {[%emt 0:00:00]} 63. Nf7 {[%emt 0:00:17]} h3 {[%emt 0:00:00]} 64. d6 {[%emt 0:00:28]} Ne4+ {[%emt 0:00:00]} 65. Kf1 {[%emt 0:00:40]} h2 {[%emt 0:00:10]} 66. Kg2 {[%emt 0:00:17] [#]} g3 $1 {[%emt 0:00:02]} 67. Ne5 {[%emt 0:00:53]} Nf2 {[%emt 0:01:31][%csl Gf2][%cal Rh2h1]} 68. Nd3+ {[%emt 0:00:50]} Nxd3 {[%emt 0:00:14]} 69. d7 {[%emt 0:00:03]} Nf2 {[%emt 0:02:03][%csl Gf2][%cal Rh2h1]} 70. d8=Q {[%emt 0:00:05]} h1=Q# {[%emt 0:00:00] Weighted Error Value: White=0.82/Black=0.11 (very precise)} 0-1

[Event "34th MPL National U14-ch 2022"]
[Site "Ahmedabad"]
[Date "2022.05.11"]
[Round "6.2"]
[White "Bagwe Gaurang"]
[Black "Kadam Om Manish"]
[Result "0-1"]
[ECO "B91"]
[WhiteElo "1789"]
[BlackElo "2144"]
[Annotator "TA"]
[PlyCount "112"]
[EventDate "2022.05.09"]
[EventType "swiss"]
[EventCountry "IND"]
[SourceTitle "playchess.com"]
[Source "ChessBase"]
[SourceQuality "1"]
[TimeControl "5400+30"]

{[%evp 19,112,-12,0,0,0,0,0,-6,0,-10,-9,-35,-29,-50,0,-25,-45,-54,-47,-61,-58,-39,-52,-56,0,-24,-20,-31,-19,-35,0,13,48,0,74,0,0,0,0,-114,0,-87,-106,-107,-98,-116,-108,-95,-124,-319,-179,-172,0,0,0,0,0,-239,-112,-102,-110,-122,0,-127,-133,-106,-112,-114,0,-25,-13,-29,-32,-692,-622,-29985,-29986,-29986,-29987,-29986,-29987,-29991,-29992,-29994,-29995,-29996,-29996,-29996,-29997,-29997,-29997,-29997,-29997,-29998,-29999]} 1. e4 {[%emt 0:00:02]} c5 {[%emt 0:00:05]} 2. Nf3 {[%emt 0:00:03]} d6 {[%emt 0:00:03]} 3. d4 {[%emt 0:00:02]} cxd4 {[%emt 0:00:04]} 4. Nxd4 {[%emt 0:00:04]} Nf6 {[%emt 0:00:02]} 5. Nc3 {[%emt 0:00:05]} a6 {[%emt 0:00:02]} 6. g3 {[%emt 0:00:04]} e5 {[%emt 0:00:02]} 7. Nde2 {[%emt 0:00:04]} Be7 {[%emt 0:00:05]} 8. Bg2 {[%emt 0:00:03]} b5 {[%emt 0:00:21]} 9. O-O {[%emt 0:00:31]} Nbd7 {[%emt 0:01:28]} 10. h3 {[%emt 0:00:57]} Bb7 {[%emt 0:00:35]} 11. g4 {[%emt 0:01:35] B91: Sicilian Najdorf: 6 g3.} Nc5 {[%emt 0:00:11][%cal Rf6e4]} 12. Ng3 {[%emt 0:00:11]} O-O {[%emt 0:00:05]} 13. Be3 {[%emt 0:02:09] The position is equal.} Rc8 {[%emt 0:00:49]} 14. Qd2 {[%emt 0:01:52]} g6 {[%emt 0:02:07] [#]} 15. f4 $146 {[%emt 0:04:03]} ({Predecessor:} 15. a3 Na4 16. Nxa4 bxa4 17. Rfd1 Qc7 18. Rac1 Bc6 19. b4 axb3 20. cxb3 Qb7 21. Qd3 Rfd8 22. g5 Nd7 23. Bf1 Nb8 24. Bg2 Nd7 25. Bf1 Nb8 {½-½ (25) Pancevski,F (2399)-Szabo,G (2545) Albena 2011}) 15... exf4 {[%emt 0:08:08]} 16. Rxf4 {[%emt 0:04:55]} Ne6 {[%emt 1:24:23]} (16... Nfd7 $15) 17. Rf2 {[%emt 0:00:13][%cal Oe4e5] Black must now prevent e5!} (17. Rff1 $5 {[%cal Re4e5]} Nd7 18. Nd5 $11) 17... Nd7 {[%emt 0:00:00]} 18. Raf1 {[%emt 0:07:09]} Ne5 {[%emt 0:00:00]} 19. Bh6 {[%emt 0:01:37]} Bh4 {[%emt 0:00:00]} 20. Kh2 {[%emt 0:00:49]} Nc4 {[%emt 0:00:00]} 21. Qe1 {[%emt 0:04:01] [#]} Ne5 $1 {[%emt 0:00:00]} 22. Bxf8 {[%emt 0:01:10]} (22. Qd2 Bg5) 22... Qxf8 {[%emt 0:00:00]} 23. Nd5 {[%emt 0:07:11]} Qh6 {[%emt 0:00:00]} 24. Qd1 {[%emt 0:13:38][%cal Of2f6]} Bxd5 {[%emt 0:00:00]} (24... Bg5 $15) 25. exd5 $11 {[%emt 0:01:29]} Nc5 {[%emt 0:00:00] Pair of Knights!} (25... Ng7 $5 {[%cal Rf7f5]}) 26. Qd4 {[%emt 0:08:34] Against Qe3} (26. Re2 $1 $14) 26... Na4 {[%emt 0:00:00]} (26... Ncd7 $11) 27. b3 {[%emt 0:13:03]} (27. Re2 $16) 27... Nc3 $1 {[%emt 0:00:00]} (27... Rc3 28. Nf5 (28. bxa4 Bxg3+ 29. Kh1 Rc4 $11) 28... gxf5 29. Rxf5 $16) 28. Re1 {[%emt 0:00:43]} Qg5 {[%emt 0:00:00]} 29. Qa7 {[%emt 0:07:49]} (29. Qb6 $11 h5 30. Qxd6) 29... f5 {[%emt 0:00:00]} (29... h5 $1 $17 30. Qxa6 Re8) 30. Qxa6 {[%emt 0:10:59]} (30. Rxe5 $1 $11 dxe5 31. Qxa6 Bxg3+ 32. Kxg3 f4+ 33. Kh2) 30... Re8 $1 $17 {[%emt 0:00:00][%cal Oe5g4] Chess con chili. Black is more active.} 31. Rxe5 {[%emt 0:02:16]} Bxg3+ {[%emt 0:00:00]} 32. Kxg3 {[%emt 0:00:02]} f4+ $1 {[%emt 0:00:00]} 33. Kh2 {[%emt 0:00:01]} Qxe5 {[%emt 0:00:00]} 34. Rf3 $2 {[%emt 0:00:20]} (34. Bf3 $17) 34... b4 {[%emt 0:00:00]} ({Not} 34... Nxd5 35. Qxb5 Ne3 36. Qxe5 dxe5 37. c4 $14) (34... Ne2 $142 35. Qxb5 Nd4) 35. Qc4 {[%emt 0:00:49] Against Qd4} Nxd5 {[%emt 0:00:00]} (35... Ne4 $1 $19 {Hoping for ...Ng5.} 36. Qxb4 Ng5) 36. Kh1 $11 {[%emt 0:09:57][%cal Of3f4]} Kg7 {[%emt 0:00:00]} 37. Rd3 {[%emt 0:00:00]} Ne3 {[%emt 0:00:00]} 38. Qc7+ {[%emt 0:00:00]} (38. Qxb4 $11 {and White stays safe.} Qa1+ 39. Kh2) 38... Re7 {[%emt 0:00:00]} (38... Kh8 $19 {has better winning chances.} 39. Qc6 d5) 39. Qxd6 $17 {[%emt 0:00:00]} Qxd6 {[%emt 0:00:00]} ({But not} 39... Nxc2 $6 40. Kg1 $11 (40. Qxe5+ Rxe5 41. Kg1 Ra5 $15)) 40. Rxd6 {[%emt 0:00:00]} Nxc2 {[%emt 0:00:00][%mdl 4096] Endgame KRB-KRN} (40... Kh6 $1 $17 {Threatens to win with ...Kg5.} 41. Rd4 Kg5) 41. Rd2 {[%emt 0:00:00] [#]} (41. g5 $11 {remains equal.}) 41... Re1+ $1 {[%emt 0:00:00]} 42. Kh2 {[%emt 0:00:00]} Ne3 {[%emt 0:00:00] And now ...Kf6 would win.} 43. g5 {[%emt 0:00:00] [#]} h5 {[%emt 0:00:00]} (43... Kf7 $1 $17 {[%cal Of4f3] ...f3! is the strong threat.} 44. Bd5+ Nxd5 45. Rxd5 Ke6) 44. Rf2 {[%emt 0:00:00]} Rd1 {[%emt 0:00:00] aiming for ...Rd4.} 45. Bc6 {[%emt 0:00:00]} Rd4 {[%emt 0:00:00]} 46. a4 $2 {[%emt 0:02:44][%mdl 8192]} (46. Be8 $15) 46... bxa3 $19 {[%emt 0:00:00][%cal Od4d2] ( -> ...Rd2!)} 47. Ra2 {[%emt 0:00:14] [#] Inhibits Rd2+.} Rd2+ $3 {[%emt 0:00:00][%mdl 512] Black mates.} 48. Rxd2 {[%emt 0:01:47]} Nf1+ {[%emt 0:00:00]} 49. Kg2 {[%emt 0:01:01]} Nxd2 {[%emt 0:00:00] KB-KN} 50. b4 {[%emt 0:00:33]} a2 {[%emt 0:00:00]} 51. b5 {[%emt 0:00:04]} a1=Q {[%emt 0:00:00]} 52. b6 {[%emt 0:00:06]} Qf1+ {[%emt 0:00:00]} 53. Kh2 {[%emt 0:00:02]} Qf2+ {[%emt 0:00:00]} 54. Kh1 {[%emt 0:00:04]} Nf1 {[%emt 0:00:00][%cal Rf1g3]} 55. Bg2 {[%emt 0:00:04]} Ng3+ {[%emt 0:00:00]} 56. Kh2 {[%emt 0:00:07]} f3 {[%emt 0:00:00] Weighted Error Value: White=0.68/Black=0.24 (precise)} 0-1

[Event "34th MPL National U14-ch 2022"]
[Site "Ahmedabad"]
[Date "2022.05.11"]
[Round "6.3"]
[White "Arpith S Bijoy"]
[Black "Bharadia Yash"]
[Result "1/2-1/2"]
[ECO "E05"]
[WhiteElo "1713"]
[BlackElo "1924"]
[Annotator "TA"]
[PlyCount "104"]
[EventDate "2022.05.09"]
[EventType "swiss"]
[EventCountry "IND"]
[SourceTitle "playchess.com"]
[Source "ChessBase"]
[SourceQuality "1"]
[TimeControl "5400+30"]

{[%evp 20,104,-16,-25,-14,-14,-13,-17,-17,-27,-17,-44,-54,-63,-35,-39,-33,-87,-42,-46,0,0,7,0,0,-8,20,17,16,19,19,18,18,17,53,11,17,6,13,0,0,0,0,0,0,0,0,0,0,0,0,0,3,2,8,0,18,10,14,0,57,57,14,8,59,33,33,0,33,33,33,33,33,33,33,33,33,33,33,0,0,0,0,0,0,0,29985]} 1. d4 {[%emt 0:00:04]} Nf6 {[%emt 0:04:21]} 2. c4 {[%emt 0:00:04]} e6 {[%emt 0:00:14]} 3. g3 {[%emt 0:00:07]} d5 {[%emt 0:00:20]} 4. Bg2 {[%emt 0:00:15]} Be7 {[%emt 0:00:06]} 5. Nf3 {[%emt 0:00:08]} O-O {[%emt 1:27:59]} 6. O-O {[%emt 0:00:21]} dxc4 {[%emt 0:00:00]} 7. Qa4 {[%emt 0:00:42]} a6 {[%emt 0:00:00]} 8. Qxc4 {[%emt 0:00:12]} b5 {[%emt 0:00:00]} 9. Qc2 {[%emt 0:00:18]} Bb7 {[%emt 0:00:00]} 10. Nbd2 {[%emt 0:00:53]} Nbd7 {[%emt 0:00:00]} 11. Nb3 {[%emt 0:25:53]} Be4 {[%emt 0:00:00] E05: Open Catalan: 5 Nf3 Be7.} 12. Qd1 {[%emt 0:02:17]} c5 {[%emt 0:00:00]} 13. dxc5 {[%emt 0:06:32]} Nxc5 {[%emt 0:00:00]} 14. Nxc5 {[%emt 0:00:30]} Bxc5 {[%emt 0:00:00]} 15. Bf4 {[%emt 0:00:51] Against Qb8} Qb6 {[%emt 0:00:00]} 16. Ne5 {[%emt 0:03:21]} Rfd8 {[%emt 0:00:00] Prevents Nd7.} 17. Qb3 {[%emt 0:01:45] [#]} Rac8 $146 {[%emt 0:00:00]} ({Predecessor:} 17... Bd5 18. Bxd5 Nxd5 19. Nd3 Nxf4 20. gxf4 Bd4 21. Rac1 Rd5 22. Qc2 Rad8 23. Qc7 Qxc7 24. Rxc7 {0-1 (54) Bonay Toscas,S (1722)-Garcia Ruiz,A (1920) Hospitalet de Llobregat 2019}) 18. Bg5 {[%emt 0:08:57]} (18. Bxe4 $15 Nxe4 19. Qf3) 18... Bxg2 {[%emt 0:00:00]} 19. Kxg2 {[%emt 0:00:21]} Qb7+ {[%emt 0:00:00]} (19... Bd4 $15 20. Bxf6 gxf6) 20. Qf3 $11 {[%emt 0:02:48]} Qxf3+ {[%emt 0:00:00]} 21. Kxf3 {[%emt 0:02:20]} Bd4 {[%emt 0:00:00][%csl LRb2,LRe5]} 22. Nd3 {[%emt 0:01:44]} Rc2 {[%emt 0:00:00]} 23. Rac1 {[%emt 0:03:21]} Rcc8 {[%emt 0:00:00]} 24. Rxc8 {[%emt 0:06:05]} Rxc8 {[%emt 0:00:00]} 25. Rc1 {[%emt 0:00:02]} Rxc1 {[%emt 0:00:00]} 26. Bxc1 {[%emt 0:00:05][%mdl 4096] Endgame KBN-KBN} e5 {[%emt 0:00:00] [#] White must now prevent ...e4+.} 27. e4 {[%emt 0:04:04]} Nd7 $1 {[%emt 0:02:43]} 28. b3 {[%emt 0:10:04]} a5 {[%emt 0:02:26]} 29. Ba3 {[%emt 0:01:39]} f6 {[%emt 0:00:37]} 30. Ke2 {[%emt 0:02:43]} Kf7 {[%emt 0:00:38]} 31. Ne1 {[%emt 0:05:27]} Ke6 {[%emt 0:01:31]} (31... b4 $5 32. Bc1 g6 $11) 32. Nc2 {[%emt 0:00:33]} Bb6 {[%emt 0:00:36]} 33. Bc1 {[%emt 0:00:53]} Kd6 {[%emt 0:00:40]} 34. f3 {[%emt 0:01:52]} Bc5 {[%emt 0:00:52]} 35. h3 {[%emt 0:04:57]} Nb6 {[%emt 0:00:50]} 36. Bd2 {[%emt 0:00:28]} b4 {[%emt 0:00:11]} 37. Ne3 {[%emt 0:00:21]} g6 {[%emt 0:00:49] Against Nf5+} 38. Kd3 {[%emt 0:00:17]} Kc6 {[%emt 0:01:29]} 39. Nc4 {[%emt 0:00:32]} Kb5 {[%emt 0:00:10]} ({Black should play} 39... Nxc4 $11 40. Kxc4 Bf2) 40. Nxb6 $1 $14 {[%emt 0:00:46]} Bxb6 {[%emt 0:00:04] KB-KB} 41. Bh6 {[%emt 0:00:08]} g5 {[%emt 0:00:47]} ({Better is} 41... Bc5 $11) 42. Bf8 {[%emt 0:00:25] [#] Be7 is the strong threat.} Bc5 {[%emt 0:00:05] Inhibits Be7.} 43. Bh6 {[%emt 0:00:18]} (43. Bg7 $5 {[%cal Rg7f6]} Be7 44. Bh6 $11) 43... a4 {[%emt 0:01:41]} 44. h4 {[%emt 0:00:36]} axb3 {[%emt 0:00:10]} 45. axb3 {[%emt 0:00:05]} gxh4 {[%emt 0:00:22]} 46. gxh4 {[%emt 0:00:05]} Bd6 {[%emt 0:00:59]} 47. h5 {[%emt 0:01:10]} Kc5 {[%emt 0:00:04]} 48. Ke3 {[%emt 0:00:07]} Kc6 {[%emt 0:00:12]} 49. f4 {[%emt 0:01:45]} exf4+ {[%emt 0:00:59] The position is equal.} 50. Bxf4 {[%emt 0:00:01]} Bxf4+ {[%emt 0:00:06]} 51. Kxf4 {[%emt 0:00:07] Threatening mate with Kf5.} Kd6 {[%emt 0:00:01]} 52. Kf5 {[%emt 0:02:23]} Kc6 $2 {[%emt 0:04:28][%mdl 40960] Weighted Error Value: White=0.07 (flawless) /Black=0.13 (very precise) . An unexpected result.} (52... Ke7 $11) 1/2-1/2

[Event "34th MPL National U14-ch 2022"]
[Site "Ahmedabad"]
[Date "2022.05.11"]
[Round "6.4"]
[White "Koustuv Dash"]
[Black "Anubhav Rawat"]
[Result "1/2-1/2"]
[ECO "D37"]
[WhiteElo "1910"]
[BlackElo "1329"]
[Annotator "TA"]
[PlyCount "144"]
[EventDate "2022.05.09"]
[EventType "swiss"]
[EventCountry "IND"]
[SourceTitle "playchess.com"]
[Source "ChessBase"]
[SourceQuality "1"]
[TimeControl "5400+30"]

{[%evp 21,144,36,120,102,112,48,146,139,135,132,174,99,293,23,26,8,8,9,6,10,18,0,0,0,11,18,49,12,11,18,42,43,65,56,86,86,86,86,86,86,86,86,86,86,86,86,91,86,84,84,125,125,142,86,95,94,123,123,122,122,195,195,173,137,137,137,378,378,363,318,264,144,138,137,142,83,83,83,83,83,83,58,58,52,52,52,52,16,16,16,16,16,16,16,16,20,36,43,52,52,52,0,52,0,52,0,52,8,8,8,8,8,8,8,15,8,22,8,8,8,38,8,8,8,15]} 1. d4 {[%emt 0:00:39]} d5 {[%emt 0:00:20]} 2. c4 {[%emt 0:00:05]} e6 {[%emt 0:00:31]} 3. Nc3 {[%emt 0:00:06]} Nf6 {[%emt 0:00:35]} 4. Nf3 {[%emt 0:00:06]} Be7 {[%emt 0:00:30]} 5. Bf4 {[%emt 0:00:08]} O-O {[%emt 0:02:51]} 6. e3 {[%emt 0:00:04]} b6 {[%emt 0:03:13]} 7. Bd3 {[%emt 0:00:44]} Bb7 {[%emt 0:03:07]} 8. cxd5 {[%emt 0:00:21]} exd5 {[%emt 0:01:35]} 9. Ne5 {[%emt 0:00:25]} c5 {[%emt 0:09:55]} 10. O-O {[%emt 0:02:30]} Nbd7 {[%emt 0:18:35] was the old line (10...Nc6).} 11. Qf3 {[%emt 0:00:56]} a6 {[%emt 0:07:52]} (11... Qc8 $14) 12. Qh3 {[%emt 0:01:08] Strongly threatening Nxd7. D37: Queen's Gambit Declined: 5 Bf4.} g6 {[%emt 0:06:58]} 13. Rad1 {[%emt 0:05:30] [#] 0x0.000a7acd1cc0dp-1022s more active pieces. The black rooks are badly placed.} (13. Bh6 $1 $16) 13... Nxe5 $146 {[%emt 0:08:28]} (13... Re8 $1 $14) ({Predecessor:} 13... cxd4 14. exd4 Re8 15. Rfe1 b5 16. Bg5 Nxe5 17. dxe5 Nd7 18. e6 Bxg5 19. exf7+ Kxf7 20. Qxh7+ {1-0 (32) Baladjaev,G (2366)-Ponomarenko,V (2183) Tula 2018}) 14. dxe5 $16 {[%emt 0:01:50] White is clearly better.} ({Don't play} 14. Bxe5 $6 Nd7 $14) 14... Nh5 {[%emt 0:01:12]} 15. Bh6 {[%emt 0:01:08]} Ng7 {[%emt 0:04:20] [#]} 16. Bb1 {[%emt 0:12:09]} ({Better is} 16. Be4 $1 $18 {[%cal Re4d5][%mdl 512]}) 16... f6 $2 {[%emt 0:10:14]} (16... Qc7 $16 {was necessary.}) 17. Nxd5 $2 {[%emt 0:06:05]} Bxd5 $11 {[%emt 0:00:31]} 18. Bxg7 {[%emt 0:00:17]} (18. g4 $5 {[%cal Re3e4]}) 18... Kxg7 {[%emt 0:01:01]} 19. e4 {[%emt 0:00:09] Prevents f5.} Qc8 {[%emt 0:02:57]} 20. Qxc8 {[%emt 0:01:45]} Raxc8 {[%emt 0:00:06]} 21. Rxd5 {[%emt 0:02:21]} fxe5 {[%emt 0:00:39]} 22. b3 {[%emt 0:03:46]} Bf6 {[%emt 0:07:02]} 23. Rd6 {[%emt 0:00:53]} Rb8 {[%emt 0:00:25]} 24. Rd7+ {[%emt 0:01:20]} (24. Bd3 $5 {[%cal Rd3a6]}) 24... Rf7 {[%emt 0:01:14]} 25. Rfd1 {[%emt 0:00:44]} Rxd7 {[%emt 0:00:23]} 26. Rxd7+ {[%emt 0:00:02][%mdl 4096] Endgame KRB-KRB} Kg8 {[%emt 0:01:45]} 27. Bd3 {[%emt 0:00:11]} Rd8 {[%emt 0:01:38]} 28. Bc4+ {[%emt 0:00:48]} Kh8 {[%emt 0:00:09]} 29. Rxd8+ {[%emt 0:01:05]} Bxd8 {[%emt 0:00:04]} 30. Bxa6 $16 {[%emt 0:00:01] KB-KB} Kg7 {[%emt 0:00:29]} 31. Kf1 {[%emt 0:00:17]} Kf6 {[%emt 0:00:29]} 32. Ke2 {[%emt 0:00:15]} Ke6 {[%emt 0:01:50]} 33. Bc4+ {[%emt 0:00:12]} Kf6 {[%emt 0:00:54]} 34. Bg8 {[%emt 0:01:08]} Kg7 {[%emt 0:00:40]} 35. Bd5 {[%emt 0:00:02]} b5 {[%emt 0:00:32]} 36. a4 {[%emt 0:00:06]} Kf6 {[%emt 0:02:57]} 37. Bc6 {[%emt 0:00:01]} (37. axb5 $142 Ke7 38. Kd3) 37... bxa4 {[%emt 0:00:53]} 38. bxa4 {[%emt 0:00:02]} Ke7 {[%emt 0:00:38]} 39. Kd3 {[%emt 0:00:07]} Kd6 {[%emt 0:00:23]} 40. Bd5 {[%emt 0:00:03]} Kc7 {[%emt 0:01:56]} (40... Ba5 $16 41. Kc4 g5) 41. Kc4 $18 {[%emt 0:01:04]} Kb6 {[%emt 0:00:26]} 42. a5+ {[%emt 0:02:29]} Kxa5 {[%emt 0:00:08]} 43. Kxc5 {[%emt 0:00:02][%cal Of2f4] Hoping for f4!} Be7+ $2 {[%emt 0:00:58] [#]} (43... Bb6+ $16 {might work better.} 44. Kd6 Bxf2) 44. Kc6 $1 {[%emt 0:00:48][%cal Of2f4] Threatens to win with f4!} g5 {[%emt 0:00:09]} 45. Kd7 {[%emt 0:00:18]} Bc5 {[%emt 0:00:31] [#]} 46. Ke6 {[%emt 0:00:01]} (46. f3 $1 $18) 46... Bxf2 $16 {[%emt 0:00:50]} 47. Kxe5 {[%emt 0:00:02]} Kb6 {[%emt 0:00:31]} 48. g4 {[%emt 0:12:27]} (48. Kf5 $142) 48... Kc7 {[%emt 0:00:23]} 49. Kf6 {[%emt 0:00:34]} h6 {[%emt 0:00:17]} 50. e5 {[%emt 0:10:13][%cal Be4e5,Be5e6][%mdl 32] And now e6 would win.} Bd4 {[%emt 0:00:05]} 51. Kf5 {[%emt 0:00:12]} Kd7 {[%emt 0:00:22]} 52. e6+ {[%emt 0:00:11]} Ke7 {[%emt 0:00:28]} 53. Kg6 {[%emt 0:00:10]} Be3 {[%emt 0:01:15]} 54. Kxh6 {[%emt 0:00:54]} Kf6 $1 {[%emt 0:00:03]} 55. Kh5 {[%emt 0:00:15]} Bf4 {[%emt 0:00:56]} 56. h3 {[%emt 0:00:18]} Be3 {[%emt 0:00:24]} 57. Bb3 {[%emt 0:00:20]} Bf4 {[%emt 0:00:13]} 58. Kh6 {[%emt 0:01:20]} Be3 {[%emt 0:00:11]} 59. Kh7 {[%emt 0:00:02]} Bf4 {[%emt 0:00:21]} 60. Kg8 {[%emt 0:00:15]} Bd6 {[%emt 0:00:04]} 61. Kh7 {[%emt 0:00:08]} Bf4 $1 {[%emt 0:01:28]} 62. Kh6 {[%emt 0:00:09]} Be3 $1 {[%emt 0:00:08]} 63. Kh5 {[%emt 0:00:05]} Bf4 $1 {[%emt 0:00:16]} 64. h4 {[%emt 0:00:02]} gxh4 {[%emt 0:00:23]} 65. Kxh4 {[%emt 0:00:02]} Bg5+ {[%emt 0:00:24]} 66. Kg3 {[%emt 0:00:10]} Ke5 $1 {[%emt 0:00:17]} 67. Kf3 {[%emt 0:00:06]} Kd4 {[%emt 0:00:18]} 68. Ke2 {[%emt 0:00:28]} Kc3 {[%emt 0:00:35]} 69. Ba2 {[%emt 0:00:30]} Kd4 {[%emt 0:00:07]} 70. Bb1 {[%emt 0:00:41]} Kc3 {[%emt 0:00:13]} 71. Bf5 {[%emt 0:00:11]} Kd4 {[%emt 0:00:19]} 72. Kd1 {[%emt 0:00:02]} Kc3 {[%emt 0:00:13] Blacks defense is rewarded with a draw.  Weighted Error Value: White=0.21 (precise) /Black=0.20 (precise)} 1/2-1/2